bitfinex-derivatives/quotes_ETHF0:USTF0_20241024
["timestamp","ask_amount","ask_price","bid_price","bid_amount"]
[1729759280391,0.39348,2543.8,2543.7,0.8096]
[1729759280586,3.2078,2543.8,2543.4,0.39353]
[1729759280793,0.39352,2543.6,2543.4,1.40753]
[1729759281295,0.39353,2543.5,2543.4,1.014]
[1729759281503,5.1964,2543.7,2543.2,4.2218]
[1729759281799,5.1964,2543.7,2542.9,5.49503529]
[1729759281800,7.73095644,2543.5,2542.9,5.49503529]
[1729759281997,0.3936,2543.1,2542.9,4.00131]
[1729759282787,0.839,2543.3,2542.9,4.00131]
[1729759282788,0.39358,2543.2,2542.9,4.00131]
[1729759282992,0.39359,2543.1,2542.9,4.00131]
[1729759283292,0.39359,2543.1,2542.9,3.6077]
[1729759284299,1.2511,2543.3,2542.9,3.6077]
[1729759284496,0.3936,2543.0,2542.9,3.6077]
[1729759285199,0.3936,2543.0,2542.9,0.3999]
[1729759286199,0.3936,2543.0,2542.7,3.47226526]
[1729759286200,0.39364,2542.8,2542.7,3.47226526]
[1729759286588,0.39364,2542.8,2542.7,3.89026526]
[1729759288002,0.39364,2542.8,2542.7,0.418]
[1729759296311,0.39364,2542.8,2542.7,1.55252319]
[1729759301512,5.46096319,2542.8,2542.7,0.418]
[1729759301697,0.39373,2542.2,2542.1,1.4357]
[1729759301902,0.39373,2542.2,2542.1,3.43452319]
[1729759303804,0.39373,2542.2,2542.1,2.3]
[1729759304008,0.39373,2542.2,2542.1,2.41952319]
[1729759308414,0.39373,2542.2,2542.1,1.285]
[1729759308611,0.39373,2542.2,2542.1,2.41952319]
[1729759313814,0.39373,2542.2,2542.1,1.285]
[1729759314120,5.46185319,2542.2,2542.1,1.98792319]
[1729759314310,4.32733,2542.2,2542.1,1.13452319]
[1729759314514,7.53513,2542.2,2542.1,1.13452319]
[1729759315010,0.39376,2542.0,2541.9,0.8042]
[1729759315317,0.39376,2542.0,2541.9,1.93872319]
[1729759317307,1.21566,2542.0,2541.9,1.93872319]
[1729759320312,0.79226,2542.0,2541.9,1.93872319]
[1729759320515,0.39376,2542.0,2541.9,1.93872319]
[1729759327320,0.82276,2542.0,2541.9,1.93872319]
[1729759328023,9.81605257,2542.0,2541.4,1.004]
[1729759328325,0.39381,2541.7,2541.6,1.13452319]
[1729759328720,1.13452319,2541.7,2541.5,1.2997]
[1729759328916,1.13452319,2541.6,2541.1,4.60569]
[1729759329116,1.54782319,2541.5,2541.2,1.2587]
[1729759329329,0.39387,2541.3,2541.2,1.2587]
[1729759329528,0.39387,2541.3,2541.2,2.39322319]
[1729759330228,4.41232319,2541.3,2540.6,1.53650294]
[1729759330523,0.39401,2540.4,2540.3,0.4334]
[1729759330723,0.39405,2540.1,2540.0,3.4078]
[1729759330927,0.39405,2540.1,2540.0,1.33435529]
[1729759330928,1.52857319,2540.1,2540.0,1.33435529]
[1729759331119,1.13452319,2540.2,2540.0,4.54215529]
[1729759331429,44.8561,2540.6,2540.1,1.13452319]
[1729759331430,3.2078,2540.3,2540.1,1.13452319]
[1729759331628,1.13452319,2540.2,2540.1,1.13435529]
[1729759331828,5.34274617,2540.2,2540.0,1.33452319]
[1729759332025,0.39405,2540.1,2540.0,2.46887848]
[1729759332427,0.39405,2540.1,2540.0,1.33435529]
[1729759332634,0.39405,2540.1,2540.0,0.2]
[1729759332635,4.33085,2540.1,2540.0,0.2]
[1729759332927,4.87101124,2540.1,2540.0,1.33435529]
[1729759333139,0.39405,2540.1,2540.0,1.33435529]
[1729759333632,3.2078,2540.3,2540.0,1.33435529]
[1729759333824,0.39405,2540.2,2540.0,1.33435529]
[1729759334024,4.52268495,2540.2,2540.0,1.33435529]
[1729759334225,4.12863495,2540.2,2540.0,1.33435529]
[1729759334426,3.2078,2540.3,2540.1,1.13435529]
[1729759334427,3.60184,2540.3,2540.1,1.13435529]
[1729759334736,0.39402,2540.4,2540.2,1.13435529]
[1729759334935,0.39402,2540.3,2540.2,1.13435529]
[1729759335228,4.41148432,2540.3,2540.2,1.13435529]
[1729759335430,0.39402,2540.3,2540.2,1.13435529]
[1729759336330,3.60182,2540.3,2540.2,1.13435529]
[1729759336830,11.96201951,2540.3,2540.1,0.4008]
[1729759337026,3.60183,2540.3,2540.2,1.13435529]
[1729759337622,3.2078,2540.3,2540.2,1.13435529]
[1729759337826,3.2078,2540.3,2540.2,1.53735529]
[1729759338127,3.2078,2540.3,2540.2,1.93139529]
[1729759339033,3.2078,2540.6,2540.2,1.53735529]
[1729759339229,5.66872999,2541.0,2540.6,1.13435529]
[1729759339533,10.00669384,2541.0,2540.7,1.53375529]
[1729759339733,0.39395,2540.8,2540.7,1.53375529]
[1729759340826,4.87828146,2540.9,2540.7,1.53375529]
[1729759341032,4.48434146,2540.9,2540.7,1.53375529]
[1729759341228,0.39395,2540.8,2540.7,1.53375529]
[1729759342943,0.39395,2540.8,2540.7,0.3994]
[1729759343240,4.32995,2540.8,2540.7,0.3994]
[1729759343639,8.06536867,2540.8,2540.4,0.394]
[1729759343835,0.39398,2540.6,2540.5,1.13435529]
[1729759345652,4.12936867,2540.8,2540.5,1.13435529]
[1729759345847,0.39397,2540.7,2540.5,1.52834529]
[1729759346256,4.46141403,2540.6,2540.5,1.52834529]
[1729759346655,4.85539403,2540.6,2540.5,1.13435529]
[1729759347153,4.46141403,2540.6,2540.5,1.13435529]
[1729759347350,4.46141403,2540.6,2540.5,1.52834529]
[1729759347546,4.46141403,2540.6,2540.5,1.13435529]
[1729759347757,4.85539403,2540.6,2540.5,1.13435529]
[1729759349855,8.39741403,2540.6,2540.3,0.434]
[1729759350065,0.39401,2540.4,2540.3,1.13435529]
[1729759350464,3.60181,2540.4,2540.3,1.13435529]
[1729759351159,0.39405,2540.1,2540.0,0.2]
[1729759351358,6.06277999,2540.1,2540.0,1.33435529]
[1729759351762,6.06277999,2540.1,2539.2,0.39419]
[1729759351763,0.39418,2539.4,2539.2,0.39419]
[1729759352066,3.2078,2539.6,2539.3,1.52852529]
[1729759352255,40.8,2539.5,2539.3,1.13435529]
[1729759352451,45.49508792,2539.5,2539.3,1.52852529]
[1729759352657,45.49508792,2539.5,2539.4,1.52851529]
[1729759352658,4.30093792,2539.5,2539.4,1.52851529]
[1729759352850,0.4241,2539.9,2539.5,0.39414]
[1729759352851,0.39411,2539.8,2539.5,0.39414]
[1729759353065,0.39411,2539.8,2539.6,0.4313]
[1729759353361,41.19412,2539.7,2539.6,0.4313]
[1729759353858,4.32784199,2539.9,2539.6,2.37508529]
[1729759354162,3.2078,2540.0,2539.9,1.52844529]
[1729759355760,3.60183,2540.3,2540.1,0.39405]
[1729759356066,0.39403,2540.3,2540.2,1.55775529]
[1729759356260,0.4015,2540.5,2540.2,1.55775529]
[1729759356261,40.8,2540.4,2540.2,1.55775529]
[1729759356567,40.8,2540.4,2540.2,0.81743]
[1729759356568,0.39402,2540.4,2540.2,0.81743]
[1729759356755,0.39402,2540.4,2540.3,1.53805529]
[1729759359457,0.39402,2540.3,2540.2,0.4234]
[1729759359764,0.39402,2540.3,2540.2,1.55775529]
[1729759360165,4.65523775,2540.4,2540.2,1.55775529]
[1729759360465,0.39402,2540.4,2540.3,1.13435529]
[1729759360658,41.19402,2540.4,2540.3,1.13435529]
[1729759362675,0.394,2540.5,2540.3,1.52836529]
[1729759362967,5.66872999,2540.6,2540.5,1.52834529]
[1729759362968,3.2078,2540.6,2540.5,1.52834529]
[1729759363158,40.8,2540.7,2540.6,0.39397]
[1729759363358,40.8,2540.7,2540.6,2.35493529]
[1729759363667,41.19396,2540.7,2540.6,1.96095529]
[1729759364259,41.19396,2540.7,2540.6,1.54675529]
[1729759364461,41.19396,2540.7,2540.6,1.13435529]
[1729759364772,45.4628927,2540.7,2540.6,1.13435529]
[1729759365066,0.39399,2540.5,2540.4,0.438]
[1729759365564,0.39399,2540.5,2540.4,1.13435529]
[1729759366067,0.39409,2539.9,2539.7,1.83511]
[1729759366261,0.39409,2539.9,2539.7,0.83211]
[1729759366454,0.39408,2540.0,2539.8,1.52844529]
[1729759366671,0.39408,2540.0,2539.8,0.39409]
[1729759366966,0.39408,2540.0,2539.9,1.13435529]
[1729759367558,3.2078,2540.3,2539.9,1.13435529]
[1729759367754,3.2078,2540.3,2540.2,1.13435529]
[1729759368370,4.00672,2540.3,2540.2,1.13435529]
[1729759369374,0.3941,2539.8,2539.7,1.86611]
[1729759369870,0.3941,2539.8,2539.7,3.00046529]
[1729759370059,0.39409,2539.9,2539.7,3.00046529]
[1729759370255,0.39409,2539.9,2539.7,0.39411]
[1729759370461,0.39409,2539.9,2539.8,1.54735529]
[1729759371262,0.39409,2539.9,2539.8,1.13435529]
[1729759372873,0.82609,2539.9,2539.8,1.13435529]
[1729759373567,0.39409,2539.9,2539.8,1.13435529]
[1729759373973,3.9376,2539.9,2539.5,1.25334]
[1729759374172,4.45287517,2539.9,2539.6,1.13435529]
[1729759374375,0.39412,2539.7,2539.6,1.13435529]
[1729759374879,0.39325812,2539.7,2539.6,1.13435529]
[1729759376569,4.45287517,2539.9,2539.6,1.13435529]
[1729759376769,0.39411,2539.8,2539.6,1.52848529]
[1729759377077,4.33480356,2539.7,2539.6,1.52848529]
[1729759377373,4.72892356,2539.7,2539.6,1.52848529]
[1729759377575,4.33480356,2539.7,2539.6,1.52848529]
[1729759378278,4.72892356,2539.7,2539.6,1.13435529]
[1729759379166,4.72892356,2539.7,2539.6,1.52848529]
[1729759379167,4.33480356,2539.7,2539.6,1.52848529]
[1729759379364,0.7956,2539.9,2539.7,0.39411]
[1729759379567,0.7956,2539.9,2539.8,0.3941]
[1729759379769,3.2078,2540.0,2539.8,1.13435529]
[1729759379969,0.39409,2539.9,2539.8,0.3941]
[1729759380171,3.2078,2540.0,2539.9,1.52844529]
[1729759380373,0.39405,2540.1,2539.9,1.13435529]
[1729759380570,2.46092999,2540.2,2539.3,1.54051229]
[1729759380881,3.2078,2540.0,2539.8,1.13435529]
[1729759381069,1.23499,2539.9,2539.8,1.13435529]
[1729759381274,0.39412,2539.7,2539.5,0.39414]
[1729759381574,6.12692949,2539.9,2539.8,1.13435529]
[1729759382078,0.80269,2539.9,2539.8,1.13435529]
[1729759382273,0.39409,2539.9,2539.8,1.13435529]
[1729759382478,0.39409,2539.9,2539.8,1.55055529]
[1729759383183,3.2078,2540.0,2539.8,1.55055529]
[1729759383380,3.2078,2540.0,2539.9,1.13435529]
[1729759383580,3.60187,2540.0,2539.9,1.13435529]
[1729759386585,0.39406,2540.1,2539.9,1.13435529]
[1729759386884,0.39406,2540.1,2540.0,1.52842529]
[1729759387275,0.39406,2540.1,2540.0,1.13435529]
[1729759392386,3.60183,2540.3,2540.1,0.39405]
[1729759392680,40.8,2540.7,2540.2,1.96095529]
[1729759392871,41.19396,2540.7,2540.6,1.13435529]
[1729759393478,41.19396,2540.7,2540.6,1.52833529]
[1729759393479,40.8,2540.7,2540.6,1.52833529]
[1729759393688,40.8,2540.7,2540.6,1.13435529]
[1729759393884,41.19396,2540.7,2540.6,1.13435529]
[1729759394488,0.39396,2540.7,2540.6,1.55425529]
[1729759395585,0.39396,2540.7,2540.6,1.95285529]
[1729759396798,0.81486,2540.7,2540.6,1.95285529]
[1729759401081,3.27578999,2540.7,2540.6,1.95285529]
[1729759402279,2.85488999,2540.7,2540.6,1.95285529]
[1729759407084,2.85488999,2540.7,2540.6,1.55425529]
[1729759407281,3.29408999,2540.7,2540.6,1.55425529]
[1729759407983,0.39404,2540.2,2540.0,1.049]
[1729759408187,0.39404,2540.2,2540.0,1.8774]
[1729759408489,0.39404,2540.2,2540.1,1.13435529]
[1729759409381,0.39404,2540.2,2540.1,1.54505529]
[1729759409778,0.39404,2540.2,2540.1,1.93910529]
[1729759411292,0.39403,2540.3,2540.2,0.39404]
[1729759411785,0.39403,2540.3,2540.2,1.52839529]
[1729759411984,0.3982,2540.6,2540.5,0.39399]
[1729759411985,0.39398,2540.6,2540.5,0.39399]
[1729759412184,0.39396,2540.7,2540.6,0.39397]
[1729759412490,0.39396,2540.7,2540.6,1.94905529]
[1729759412792,43.26092999,2541.0,2540.7,0.39396]
[1729759412987,0.39393,2540.9,2540.8,1.13435529]
[1729759413186,4.09535223,2540.9,2540.8,1.13435529]
[1729759413489,4.48928223,2540.9,2540.8,1.13435529]
[1729759414982,4.92408223,2540.9,2540.8,1.13435529]
[1729759415989,0.39396,2540.7,2540.6,0.8207]
[1729759416187,2.85488999,2540.7,2540.6,1.95505529]
[1729759416683,3.27148999,2540.7,2540.6,1.95505529]
[1729759416889,3.27148999,2540.7,2540.6,1.13435529]
[1729759418287,11.06742925,2540.7,2540.2,4.0833]
[1729759418487,0.39402,2540.3,2540.2,4.0833]
[1729759418888,0.39402,2540.3,2540.2,2.00985529]
[1729759419992,2.46092999,2540.4,2540.2,2.00985529]
[1729759420289,2.85493999,2540.4,2540.3,1.13435529]
[1729759421589,2.85493999,2540.4,2539.8,1.44309]
[1729759421590,0.39409,2539.9,2539.8,1.44309]
[1729759421790,0.39409,2539.9,2539.8,1.88279]
[1729759421988,0.39409,2539.9,2539.8,1.99275529]
[1729759425288,0.39409,2539.9,2539.8,1.55305529]
[1729759425689,0.83309,2539.9,2539.8,1.55305529]
[1729759429693,1.26529,2539.9,2539.8,1.13435529]
[1729759430600,0.3941,2539.8,2539.7,0.424]
[1729759430799,0.3941,2539.8,2539.7,1.55835529]
[1729759431002,4.73910515,2539.8,2539.7,1.55835529]
[1729759431800,0.3941,2539.8,2539.7,1.55835529]
[1729759437310,2.85502999,2539.8,2539.7,1.55835529]
[1729759437609,2.85502999,2539.8,2539.7,1.13435529]
[1729759440609,2.85502999,2539.8,2539.7,1.54405529]
[1729759441510,2.85502999,2539.8,2539.7,1.13435529]
[1729759441911,7.39061269,2539.8,2539.7,1.13435529]
[1729759442604,10.93411269,2539.8,2538.8,3.2078]
[1729759442808,0.39421,2539.1,2539.0,1.13435529]
[1729759443312,4.3835156,2539.1,2539.0,1.13435529]
[1729759443515,4.7777256,2539.1,2539.0,1.13435529]
[1729759444309,4.7777256,2539.1,2538.7,0.8393]
[1729759444310,8.3219156,2539.1,2538.7,0.8393]
[1729759444507,8.3219156,2539.1,2538.7,1.97365529]
[1729759444508,0.39426,2538.8,2538.7,1.97365529]
[1729759444913,4.54604943,2538.8,2538.7,1.97365529]
[1729759445713,0.39426,2538.8,2538.7,1.97365529]
[1729759447021,0.39426,2538.8,2538.7,2.38185529]
[1729759449019,3.2078,2538.9,2538.7,2.38185529]
[1729759449220,3.60205,2538.9,2538.8,1.13435529]
[1729759449416,3.2078,2538.9,2538.8,1.52861529]
[1729759451414,3.2078,2538.9,2538.8,1.13435529]
[1729759451608,3.60204,2538.9,2538.8,1.13435529]
[1729759451814,6.06296999,2538.9,2538.8,1.13435529]
[1729759453821,6.48736999,2538.9,2538.8,1.13435529]
[1729759454211,6.48736999,2538.9,2538.4,0.8367]
[1729759454212,10.03152999,2538.9,2538.4,0.8367]
[1729759454411,0.3943,2538.5,2538.4,0.8367]
[1729759454819,0.3943,2538.5,2538.4,1.97105529]
[1729759455117,6.09312999,2538.9,2538.4,2.36536529]
[1729759455118,0.39429,2538.6,2538.4,2.36536529]
[1729759455309,6.09312999,2538.9,2538.7,1.13435529]
[1729759455517,6.48736999,2538.9,2538.8,0.4216]
[1729759455922,14.55205688,2538.9,2538.8,0.4216]
[1729759456511,14.55205688,2538.9,2538.4,0.4167]
[1729759456512,14.15781688,2538.9,2538.4,0.4167]
[1729759456818,0.39426,2538.8,2538.7,1.13435529]
[1729759457209,4.71002898,2538.8,2538.7,1.13435529]
[1729759459921,4.71002898,2538.8,2538.2,3.2078]
[1729759459922,8.25496898,2538.8,2538.2,3.2078]
[1729759460231,0.39433,2538.3,2538.2,4.73995529]
[1729759460410,0.39433,2538.3,2538.2,3.6056]
[1729759460615,0.39433,2538.3,2538.2,4.73995529]
[1729759462014,0.39433,2538.3,2538.2,1.53215529]
[1729759462327,0.39433,2538.3,2538.2,1.13435529]
[1729759462515,0.39436,2538.1,2538.0,0.4032]
[1729759462822,4.74070402,2538.1,2538.0,1.53755529]
[1729759463511,4.74070402,2538.1,2538.0,1.13435529]
[1729759463512,7.20163401,2538.1,2538.0,1.13435529]
[1729759463717,7.62553401,2538.1,2538.0,1.13435529]
[1729759463918,11.57227401,2538.1,2537.9,0.00507902]
[1729759464114,0.39438,2538.0,2537.9,1.13943431]
[1729759464426,4.62384492,2538.0,2537.9,1.13943431]
[1729759464613,4.22946492,2538.0,2537.9,1.13943431]
[1729759464819,3.2078,2538.2,2537.9,1.53383431]
[1729759465121,3.60215,2538.2,2538.1,1.13435529]
[1729759465622,8.00955829,2538.2,2538.1,1.13435529]
[1729759466321,3.60215,2538.2,2538.1,1.13435529]
[1729759466517,5.66872999,2538.5,2538.1,1.13435529]
[1729759466714,0.39433,2538.4,2538.3,1.13435529]
[1729759467124,4.56687613,2538.4,2538.3,1.13435529]
[1729759468433,4.99787613,2538.4,2538.3,1.13435529]
[1729759470931,4.56687613,2538.4,2538.3,1.13435529]
[1729759471127,4.17254613,2538.4,2538.3,1.13435529]
[1729759471429,4.56686613,2538.4,2538.3,1.13435529]
[1729759471833,5.66872999,2538.5,2538.3,1.55785529]
[1729759472130,6.06303999,2538.5,2538.4,1.53185529]
[1729759473132,5.66872999,2538.5,2538.3,0.4235]
[1729759473326,6.06302999,2538.5,2538.4,1.13435529]
[1729759473526,4.49571188,2538.4,2538.3,1.13435529]
[1729759473830,0.39432,2538.4,2538.3,1.13435529]
[1729759474231,4.89003188,2538.4,2538.3,1.13435529]
[1729759474431,0.39438,2538.1,2537.9,0.42857902]
[1729759474629,0.39438,2538.1,2538.0,1.13435529]
[1729759475025,4.13066649,2538.1,2538.0,1.13435529]
[1729759475223,4.00736,2538.2,2538.0,1.13435529]
[1729759475420,4.00736,2538.2,2538.1,1.13435529]
[1729759478822,3.2078,2538.2,2538.1,1.13435529]
[1729759479027,0.39433,2538.3,2538.1,1.56725529]
[1729759479333,0.39433,2538.3,2538.2,1.13435529]
[1729759479529,0.80753,2538.3,2538.2,1.13435529]
[1729759479738,4.96114429,2538.3,2538.2,1.13435529]
[1729759481237,0.39437,2538.1,2537.9,0.82296902]
[1729759481437,0.39437,2538.1,2538.0,1.13435529]
[1729759481738,4.23248735,2538.1,2538.0,1.52873529]
[1729759482038,4.23248735,2538.2,2538.0,1.13435529]
[1729759482230,4.23248735,2538.2,2538.1,3.0935036]
[1729759482535,1.53091831,2538.3,2538.1,3.0935036]
[1729759482736,1.53091831,2538.3,2538.2,1.13435529]
[1729759483033,5.39720183,2538.3,2538.2,0.3962]
[1729759483233,5.39720183,2538.3,2538.2,1.53055529]
[1729759483439,9.33720183,2538.3,2537.9,0.00507902]
[1729759483629,4.34438831,2538.2,2538.1,1.13435529]
[1729759483828,4.73873831,2538.2,2538.1,1.13435529]
[1729759484031,9.09447416,2538.2,2538.1,1.13435529]
[1729759484334,49.89447416,2538.2,2538.1,1.13435529]
[1729759487437,48.75788585,2538.2,2538.1,1.13435529]
[1729759487733,49.89447416,2538.2,2538.1,1.13435529]
[1729759488931,49.50012416,2538.2,2537.9,0.87827902]
[1729759489129,1.53096831,2538.0,2537.9,0.00507902]
[1729759489331,5.47096831,2538.0,2537.9,0.00507902]
[1729759489543,10.02655293,2538.0,2537.9,0.00507902]
[1729759489932,5.69217293,2538.0,2537.9,1.53383431]
[1729759490139,5.69217293,2538.0,2537.9,1.55823431]
[1729759490338,4.55558462,2538.0,2537.9,1.95263431]
[1729759490532,4.55558462,2538.0,2537.9,1.55823431]
[1729759490738,4.94996462,2538.0,2537.9,1.55823431]
[1729759491846,8.88996462,2538.0,2537.9,0.00507902]
[1729759492241,9.31926462,2538.0,2537.9,0.00507902]
[1729759493241,9.31926462,2538.0,2537.1,2.05178225]
[1729759493242,0.986,2537.9,2537.1,1.03178225]
[1729759493442,3.60226,2537.5,2537.4,1.13435529]
[1729759493642,3.60226,2537.5,2537.2,1.234]
[1729759493643,3.2078,2537.5,2537.2,2.36835529]
[1729759493837,7.96197524,2537.5,2537.4,1.13435529]
[1729759494142,0.39449,2537.3,2537.2,1.97125529]
[1729759494645,0.39449,2537.3,2537.2,0.8369]
[1729759494646,8.82688569,2537.3,2537.2,0.8369]
[1729759494849,0.3945,2537.2,2537.1,1.03178225]
[1729759495042,0.3945,2537.2,2537.1,2.16613754]
[1729759495244,0.3945,2537.2,2535.8,4.75534971]
[1729759495245,0.98635,2537.0,2535.8,4.75534971]
[1729759495444,14.10308303,2537.2,2536.2,0.81405]
[1729759495445,0.39462,2536.5,2536.2,0.81405]
[1729759495647,0.39462,2536.5,2536.3,0.4293]
[1729759495841,0.39462,2536.5,2536.4,1.13435529]
[1729759496146,0.39462,2536.5,2536.3,0.4293]
[1729759496147,4.4102579,2536.4,2536.3,1.13435529]
[1729759496337,4.4102579,2536.5,2536.4,1.13435529]
[1729759496649,3.60241,2536.6,2536.4,1.13435529]
[1729759496650,3.2078,2536.6,2536.5,0.39461]
[1729759496849,2.46288734,2536.7,2536.5,1.13435529]
[1729759497040,7.48241895,2536.6,2536.5,1.13435529]
[1729759497360,2.46288734,2536.7,2536.6,1.13435529]
[1729759497645,2.46288734,2536.7,2536.2,3.2078]
[1729759497646,2.85747734,2536.7,2536.5,1.13435529]
[1729759497945,4.51502905,2536.7,2536.6,1.13435529]
[1729759498241,1.97154,2538.5,2536.6,1.13435529]
[1729759498242,3.60231,2537.2,2536.8,0.39456]
[1729759498451,3.60231,2537.2,2537.0,1.13435529]
[1729759498645,4.24823034,2537.1,2536.7,0.4293]
[1729759498839,4.24823034,2537.1,2536.9,0.39454]
[1729759499041,4.24823034,2537.1,2537.0,1.56185529]
[1729759499243,3.2078,2537.2,2537.0,1.95638529]
[1729759499437,3.2078,2537.2,2537.1,1.13435529]
[1729759499639,3.2078,2537.2,2537.1,1.54245529]
[1729759500053,7.66838543,2537.2,2537.1,1.54245529]
[1729759500644,3.2078,2537.2,2537.1,1.93697529]
[1729759500839,5.67068734,2537.5,2537.1,1.54245529]
[1729759501045,5.67068734,2537.5,2537.3,1.13435529]
[1729759501240,4.54580261,2537.2,2537.1,0.80262]
[1729759501445,5.67068734,2537.5,2537.2,0.3945]
[1729759501650,5.67068734,2537.5,2537.4,1.13435529]
[1729759501950,10.45901165,2537.5,2537.3,1.13435529]
[1729759502251,2.85735734,2537.4,2537.3,1.13435529]
[1729759502449,7.25268734,2537.4,2536.7,0.39458]
[1729759502645,2.46288734,2537.0,2536.8,0.39456]
[1729759502846,3.2078,2537.1,2536.9,0.4097]
[1729759503053,3.2078,2537.1,2537.0,1.13435529]
[1729759503354,4.18099074,2537.1,2537.0,1.13435529]
[1729759503645,2.46288734,2537.3,2537.0,1.52889529]
[1729759503849,2.85737734,2537.3,2537.2,1.13435529]
[1729759504039,2.46288734,2537.3,2537.2,1.13435529]
[1729759504347,7.32131226,2537.3,2537.2,1.13435529]
[1729759505250,10.86842226,2537.3,2536.7,3.2078]
[1729759505456,3.60237,2536.8,2536.7,1.13435529]
[1729759505956,8.12170573,2536.8,2536.7,1.13435529]
[1729759506252,7.72713573,2536.8,2536.7,1.13435529]
[1729759506751,5.67068734,2537.2,2536.7,1.13435529]
[1729759506941,6.06518734,2537.2,2537.1,1.13435529]
[1729759507346,10.22712017,2537.2,2537.1,1.13435529]
[1729759508055,7.36973283,2537.2,2537.1,1.13435529]
[1729759508355,0.39449,2537.4,2537.1,1.13435529]
[1729759508555,0.39449,2537.4,2537.3,1.13435529]
[1729759508746,3.2078,2537.5,2537.3,1.13435529]
[1729759508948,3.2078,2537.5,2537.4,1.13435529]
[1729759509252,3.60226,2537.5,2537.4,1.13435529]
[1729759510056,3.2078,2537.5,2537.4,1.13435529]
[1729759510356,0.39444,2537.6,2537.4,1.13435529]
[1729759510553,0.39444,2537.6,2537.3,0.80819]
[1729759510760,4.28799993,2537.6,2537.5,1.13435529]
[1729759511256,4.68243993,2537.6,2537.5,1.13435529]
[1729759511948,4.68243993,2537.6,2537.5,1.52881529]
[1729759511949,4.28799993,2537.6,2537.5,1.52881529]
[1729759512145,40.8,2537.7,2537.6,0.39444]
[1729759512350,40.8,2537.7,2537.6,1.52879529]
[1729759512753,3.60216,2538.2,2537.8,0.3944]
[1729759512951,3.60215,2538.2,2538.1,1.13435529]
[1729759513162,44.40215,2538.2,2538.1,1.13435529]
[1729759513568,44.0078,2538.2,2538.1,1.13435529]
[1729759513956,44.40215,2538.2,2538.1,1.13435529]
[1729759514163,44.0078,2538.2,2538.1,1.13435529]
[1729759514551,44.40215,2538.2,2538.1,1.13435529]
[1729759515054,54.83508965,2538.2,2537.1,3.2078]
[1729759515253,0.3945,2537.3,2537.2,0.4017]
[1729759515462,0.3945,2537.3,2537.2,0.826]
[1729759515657,0.3945,2537.3,2537.2,1.96035529]
[1729759516461,4.71855883,2537.3,2537.2,1.96035529]
[1729759516861,2.46288734,2537.6,2537.2,1.96035529]
[1729759517064,2.85732734,2537.6,2537.5,1.13435529]
[1729759517357,7.41402929,2537.6,2537.5,1.13435529]
[1729759517760,4.95114195,2537.6,2537.5,1.13435529]
[1729759518659,4.55670195,2537.6,2537.5,1.13435529]
[1729759519361,4.95114195,2537.6,2537.5,1.13435529]
[1729759521959,10.96038929,2537.6,2537.2,0.826]
[1729759522155,3.60227,2537.4,2537.3,1.13435529]
[1729759522457,10.16147906,2537.4,2536.7,1.146]
[1729759522658,0.39457,2536.8,2536.7,1.13435529]
[1729759523167,4.88536172,2536.8,2536.7,1.13435529]
[1729759523364,45.68536172,2536.8,2536.7,1.13435529]
[1729759523558,48.89316172,2536.8,2536.7,1.13435529]
[1729759524460,52.44099172,2536.8,2536.5,0.849]
[1729759524663,0.39458,2536.7,2536.6,1.13435529]
[1729759525063,4.79765347,2536.7,2536.6,1.13435529]
[1729759525565,7.26054081,2536.7,2536.6,1.13435529]
[1729759526157,6.86596081,2536.7,2535.8,0.849]
[1729759526359,3.2078,2536.4,2535.8,0.849]
[1729759526555,0.39469,2536.1,2535.8,0.849]
[1729759526768,0.39469,2536.1,2536.0,1.13435529]
[1729759526769,3.60249,2536.1,2536.0,1.13435529]
[1729759527164,0.98674,2536.0,2535.0,4.75534971]
[1729759527359,3.2078,2535.4,2535.1,0.47385529]
[1729759527658,0.39482,2535.2,2535.1,0.47385529]
[1729759527855,0.39483,2535.1,2534.2,3.2078]
[1729759528174,3.2078,2534.7,2534.2,3.68165529]
[1729759528475,4.57095305,2534.6,2534.2,2.46288734]
[1729759528668,3.2078,2535.1,2534.5,0.47385529]
[1729759528861,6.10438734,2535.5,2534.6,2.87318734]
[1729759529062,3.60258,2535.5,2535.4,0.47385529]
[1729759529564,48.57875305,2535.5,2535.4,0.47385529]
[1729759529859,3.2078,2535.5,2535.4,0.47385529]
[1729759530061,3.60257,2535.5,2535.4,0.47385529]
[1729759530264,3.2078,2535.5,2535.4,0.47385529]
[1729759530467,3.2078,2535.5,2535.4,0.86863529]
[1729759530665,3.2078,2536.0,2535.4,0.47385529]
[1729759530859,3.2078,2536.0,2535.9,0.47385529]
[1729759531260,7.66818599,2536.0,2535.9,0.47385529]
[1729759531466,3.2078,2536.0,2535.9,0.47385529]
[1729759532363,0.39467,2536.2,2535.9,0.47385529]
[1729759532665,4.64666322,2536.2,2535.5,0.4242]
[1729759532868,4.25199322,2536.2,2536.1,0.47385529]
[1729759533067,3.6361,2536.4,2536.1,0.47385529]
[1729759533265,3.2078,2536.4,2536.3,0.47385529]
[1729759533669,7.52748465,2536.4,2536.3,0.47385529]
[1729759536364,7.52748465,2536.4,2535.0,2.06339962]
[1729759536365,3.03418179,2536.1,2535.1,3.2078]
[1729759536565,3.2078,2535.7,2535.3,0.4363]
[1729759536872,4.40876541,2535.6,2535.3,0.8311]
[1729759537163,4.40876541,2535.6,2535.3,0.4363]
[1729759538267,0.39478,2535.5,2535.3,0.4363]
[1729759538473,4.40876541,2535.6,2535.3,0.4363]
[1729759539463,4.40876541,2535.6,2535.3,0.8311]
[1729759540172,4.80352541,2535.6,2535.3,0.4363]
[1729759540572,45.60352541,2535.6,2535.3,0.4363]
[1729759540773,45.20876541,2535.6,2535.3,0.4363]
[1729759540973,0.39478,2535.5,2535.3,0.4363]
[1729759541770,0.39478,2535.4,2535.3,0.4363]
[1729759542573,3.60258,2535.4,2535.3,0.4363]
[1729759542883,3.2078,2535.4,2535.3,0.4363]
[1729759543076,3.2078,2535.4,2535.0,0.412]
[1729759543577,3.6026,2535.4,2535.0,0.80684]
[1729759543778,3.2078,2535.4,2535.0,0.412]
[1729759543976,3.2078,2535.4,2535.1,0.39482]
[1729759544278,3.2078,2535.4,2535.3,0.3948]
[1729759544670,3.2078,2535.4,2535.3,3.944]
[1729759544870,3.2078,2535.4,2535.0,0.412]
[1729759545077,0.39481,2535.3,2535.0,0.412]
[1729759545578,3.2078,2535.4,2535.0,0.412]